[Event "Titled Tuesday Blitz May 30 Late 2023"]
[White "drdaro"]
[Black "TimGrutter03"]
[WhiteElo "2327"]
[BlackElo "2606"]
[Result "0-1"]
[Round "01"]
[TimeControl "180+2"]
[Date "2023.05.31"]
[WhiteClock "0:00:05"]
[BlackClock "0:00:16"]

1. d4 {[%clk 0:02:58]}  Nf6 {[%clk 0:02:51]} 2. Nf3 {[%clk 0:02:59]}  e6 {[%clk 0:02:50]} 3. g3 {[%clk 0:02:57]}  c5 {[%clk 0:02:49]} 4. Bg2 {[%clk 0:02:58]}  cxd4 {[%clk 0:02:49]} 5. Nxd4 {[%clk 0:02:59]}  Nc6 {[%clk 0:02:49]} 6. O-O {[%clk 0:02:59]}  Qb6 {[%clk 0:02:42]} 7. Nb3 {[%clk 0:02:56]}  Be7 {[%clk 0:02:40]} 8. c4 {[%clk 0:02:55]}  d6 {[%clk 0:02:36]} 9. Nc3 {[%clk 0:02:47]}  O-O {[%clk 0:02:33]} 10. e4 {[%clk 0:02:46]}  a6 {[%clk 0:02:29]} 11. Be3 {[%clk 0:02:46]}  Qc7 {[%clk 0:02:29]} 12. Qe2 {[%clk 0:02:46]}  Ne5 {[%clk 0:02:23]} 13. Nd2 {[%clk 0:02:30]}  Neg4 {[%clk 0:02:21]} 14. Rac1 {[%clk 0:02:27]}  Nxe3 {[%clk 0:02:21]} 15. Qxe3 {[%clk 0:02:27]}  Bd7 {[%clk 0:02:13]} 16. h3 {[%clk 0:02:18]}  Rac8 {[%clk 0:02:09]} 17. b3 {[%clk 0:02:17]}  Bc6 {[%clk 0:02:06]} 18. f4 {[%clk 0:02:17]}  Nd7 {[%clk 0:02:04]} 19. Nf3 {[%clk 0:02:14]}  b6 {[%clk 0:02:01]} 20. Nd5 {[%clk 0:02:14]}  Qd8 {[%clk 0:01:43]} 21. Nxe7+ {[%clk 0:02:13]}  Qxe7 {[%clk 0:01:44]} 22. Nd4 {[%clk 0:02:13]}  Bb7 {[%clk 0:01:40]} 23. Kh2 {[%clk 0:02:11]}  Nc5 {[%clk 0:01:38]} 24. b4 {[%clk 0:02:10]}  Nd7 {[%clk 0:01:38]} 25. a3 {[%clk 0:02:10]}  Rfd8 {[%clk 0:01:37]} 26. h4 {[%clk 0:02:08]}  Nf6 {[%clk 0:01:36]} 27. Bf3 {[%clk 0:02:00]}  Bxe4 {[%clk 0:01:36]} 28. Kg2 {[%clk 0:01:45]}  Bxf3+ {[%clk 0:01:35]} 29. Qxf3 {[%clk 0:01:46]}  Qd7 {[%clk 0:01:30]} 30. Rfd1 {[%clk 0:01:45]}  Qa4 {[%clk 0:01:30]} 31. h5 {[%clk 0:01:41]}  h6 {[%clk 0:01:23]} 32. g4 {[%clk 0:01:39]}  d5 {[%clk 0:01:18]} 33. g5 {[%clk 0:01:38]}  Ne4 {[%clk 0:01:17]} 34. gxh6 {[%clk 0:01:36]}  gxh6 {[%clk 0:01:18]} 35. Kh2 {[%clk 0:01:29]}  Kh8 {[%clk 0:01:06]} 36. f5 {[%clk 0:01:21]}  e5 {[%clk 0:00:54]} 37. Qe3 {[%clk 0:01:18]}  Kh7 {[%clk 0:00:41]} 38. Nf3 {[%clk 0:00:55]}  f6 {[%clk 0:00:41]} 39. Rg1 {[%clk 0:00:55]}  Qe8 {[%clk 0:00:28]} 40. Rg6 {[%clk 0:00:55]}  Ng5 {[%clk 0:00:24]} 41. Rxf6 {[%clk 0:00:53]}  Qxh5+ {[%clk 0:00:19]} 42. Kg2 {[%clk 0:00:53]}  Rg8 {[%clk 0:00:18]} 43. Kf2 {[%clk 0:00:16]}  Ne4+ {[%clk 0:00:18]} 44. Ke2 {[%clk 0:00:12]}  Nxf6 {[%clk 0:00:17]} 45. Qxe5 {[%clk 0:00:13]}  Rce8 {[%clk 0:00:17]} 46. Kd3 {[%clk 0:00:05]}  Qxf3+ {[%clk 0:00:16]} 0-1


[Site "https://www.chess.com"]

[Event "Titled Tuesday Blitz May 30 Late 2023"]
[White "Bernabeu Lopez, Carlos Javier"]
[Black "Stachanczyk, Jacek"]
[WhiteFideId "2235366"]
[BlackFideId "1116657"]
[WhiteElo "2344"]
[BlackElo "2084"]
[Result "1-0"]
[Round "01"]
[TimeControl "180+2"]
[Date "2023.05.31"]
[WhiteClock "0:01:50"]
[BlackClock "0:00:13"]

1. e4 {[%clk 0:03:00]}  c5 {[%clk 0:02:58]} 2. Nf3 {[%clk 0:03:01]}  d6 {[%clk 0:02:55]} 3. Bb5+ {[%clk 0:03:01]}  Bd7 {[%clk 0:02:54]} 4. Bxd7+ {[%clk 0:03:01]}  Qxd7 {[%clk 0:02:54]} 5. O-O {[%clk 0:03:02]}  Nf6 {[%clk 0:02:54]} 6. Nc3 {[%clk 0:03:01]}  e6 {[%clk 0:02:52]} 7. e5 {[%clk 0:03:01]}  dxe5 {[%clk 0:02:50]} 8. Nxe5 {[%clk 0:03:02]}  Qc8 {[%clk 0:02:19]} 9. Qf3 {[%clk 0:03:00]}  Bd6 {[%clk 0:02:11]} 10. Nc4 {[%clk 0:03:00]}  Be7 {[%clk 0:02:11]} 11. d3 {[%clk 0:02:53]}  Nc6 {[%clk 0:02:05]} 12. Be3 {[%clk 0:02:45]}  O-O {[%clk 0:02:04]} 13. a4 {[%clk 0:02:44]}  Qd7 {[%clk 0:01:55]} 14. Rfe1 {[%clk 0:02:43]}  Nd5 {[%clk 0:01:49]} 15. Bd2 {[%clk 0:02:21]}  Nd4 {[%clk 0:01:44]} 16. Qd1 {[%clk 0:02:20]}  Nxc3 {[%clk 0:01:38]} 17. bxc3 {[%clk 0:02:18]}  Nc6 {[%clk 0:01:37]} 18. Rb1 {[%clk 0:02:13]}  Bf6 {[%clk 0:01:32]} 19. Qf3 {[%clk 0:02:07]}  Rac8 {[%clk 0:01:27]} 20. a5 {[%clk 0:02:06]}  Rfd8 {[%clk 0:01:21]} 21. Rb5 {[%clk 0:02:04]}  Be7 {[%clk 0:01:18]} 22. Reb1 {[%clk 0:02:04]}  Rc7 {[%clk 0:00:35]} 23. Bf4 {[%clk 0:02:03]}  e5 {[%clk 0:00:35]} 24. Nxe5 {[%clk 0:02:00]}  Nxe5 {[%clk 0:00:35]} 25. Bxe5 {[%clk 0:02:01]}  Bd6 {[%clk 0:00:32]} 26. Bxd6 {[%clk 0:02:01]}  Qxd6 {[%clk 0:00:33]} 27. Rxb7 {[%clk 0:02:01]}  Rxb7 {[%clk 0:00:28]} 28. Qxb7 {[%clk 0:02:01]}  Qe6 {[%clk 0:00:29]} 29. Qxa7 {[%clk 0:01:57]}  c4 {[%clk 0:00:27]} 30. Qb6 {[%clk 0:01:54]}  Qe8 {[%clk 0:00:18]} 31. d4 {[%clk 0:01:51]}  h6 {[%clk 0:00:19]} 32. a6 {[%clk 0:01:51]}  Qe4 {[%clk 0:00:13]} 33. Qxd8+ {[%clk 0:01:50]} 1-0


[Site "https://www.chess.com"]

[Event "Titled Tuesday Blitz May 30 Late 2023"]
[White "Djabri,Massinas"]
[Black "Hossain, Enamul"]
[WhiteFideId "7905726"]
[BlackFideId "10200649"]
[WhiteElo "2194"]
[BlackElo "2433"]
[Result "0-1"]
[Round "01"]
[TimeControl "180+2"]
[Date "2023.05.31"]
[WhiteClock "0:00:00"]
[BlackClock "0:00:17"]

1. e4 {[%clk 0:03:00]}  c5 {[%clk 0:02:53]} 2. Nf3 {[%clk 0:03:00]}  Nc6 {[%clk 0:02:52]} 3. Bb5 {[%clk 0:03:00]}  e5 {[%clk 0:02:51]} 4. O-O {[%clk 0:02:57]}  Bd6 {[%clk 0:02:50]} 5. a4 {[%clk 0:02:55]}  Nf6 {[%clk 0:02:48]} 6. Re1 {[%clk 0:02:56]}  O-O {[%clk 0:02:47]} 7. c3 {[%clk 0:02:56]}  a6 {[%clk 0:02:39]} 8. Bf1 {[%clk 0:02:51]}  Re8 {[%clk 0:02:32]} 9. Na3 {[%clk 0:02:46]}  Bf8 {[%clk 0:02:23]} 10. Nc4 {[%clk 0:02:28]}  d6 {[%clk 0:02:18]} 11. d3 {[%clk 0:02:21]}  h6 {[%clk 0:02:16]} 12. Ne3 {[%clk 0:02:17]}  Be6 {[%clk 0:02:12]} 13. c4 {[%clk 0:01:45]}  Rb8 {[%clk 0:02:07]} 14. Nd5 {[%clk 0:01:39]}  b5 {[%clk 0:02:03]} 15. axb5 {[%clk 0:01:35]}  axb5 {[%clk 0:02:04]} 16. cxb5 {[%clk 0:01:33]}  Bxd5 {[%clk 0:01:54]} 17. exd5 {[%clk 0:01:27]}  Nd4 {[%clk 0:01:53]} 18. Nxd4 {[%clk 0:01:25]}  cxd4 {[%clk 0:01:53]} 19. Qb3 {[%clk 0:01:09]}  Qb6 {[%clk 0:01:52]} 20. f4 {[%clk 0:01:06]}  Qxb5 {[%clk 0:01:42]} 21. Qxb5 {[%clk 0:01:00]}  Rxb5 {[%clk 0:01:43]} 22. Ra4 {[%clk 0:00:52]}  Rxd5 {[%clk 0:01:28]} 23. Be2 {[%clk 0:00:50]}  Rb5 {[%clk 0:01:21]} 24. Bf3 {[%clk 0:00:44]}  Rc8 {[%clk 0:01:20]} 25. g4 {[%clk 0:00:30]}  Rb3 {[%clk 0:01:07]} 26. g5 {[%clk 0:00:23]}  hxg5 {[%clk 0:01:05]} 27. fxg5 {[%clk 0:00:23]}  Nd7 {[%clk 0:01:03]} 28. Ra7 {[%clk 0:00:16]}  Nb6 {[%clk 0:00:43]} 29. Rb7 {[%clk 0:00:14]}  Rxd3 {[%clk 0:00:40]} 30. Be4 {[%clk 0:00:09]}  Rb3 {[%clk 0:00:38]} 31. Bd5 {[%clk 0:00:09]}  Nxd5 {[%clk 0:00:36]} 32. Rxb3 {[%clk 0:00:10]}  g6 {[%clk 0:00:32]} 33. Rb7 {[%clk 0:00:09]}  d3 {[%clk 0:00:24]} 34. Rf1 {[%clk 0:00:09]}  Be7 {[%clk 0:00:20]} 35. b4 {[%clk 0:00:06]}  Rc2 {[%clk 0:00:19]} 36. b5 {[%clk 0:00:05]}  d2 {[%clk 0:00:19]} 37. Ba3 {[%clk 0:00:00]}  Ra2 {[%clk 0:00:17]} 0-1


[Site "https://www.chess.com"]

[Event "Titled Tuesday Blitz May 30 Late 2023"]
[White "MKlose11"]
[Black "Bashkansky, Ethan"]
[BlackFideId "2071533"]
[WhiteElo "2600"]
[BlackElo "2317"]
[Result "1-0"]
[Round "01"]
[TimeControl "180+2"]
[Date "2023.05.31"]
[WhiteClock "0:00:20"]
[BlackClock "0:00:00"]

1. e4 {[%clk 0:02:59]}  c6 {[%clk 0:03:00]} 2. Nc3 {[%clk 0:02:57]}  d5 {[%clk 0:03:01]} 3. g3 {[%clk 0:02:57]}  dxe4 {[%clk 0:02:58]} 4. Nxe4 {[%clk 0:02:58]}  Bf5 {[%clk 0:02:57]} 5. Bg2 {[%clk 0:02:58]}  Nd7 {[%clk 0:02:54]} 6. Ne2 {[%clk 0:02:58]}  e6 {[%clk 0:02:53]} 7. O-O {[%clk 0:02:58]}  Ngf6 {[%clk 0:02:53]} 8. N2c3 {[%clk 0:02:50]}  Nxe4 {[%clk 0:02:51]} 9. Nxe4 {[%clk 0:02:51]}  Nf6 {[%clk 0:02:50]} 10. Nxf6+ {[%clk 0:02:50]}  Qxf6 {[%clk 0:02:49]} 11. d4 {[%clk 0:02:51]}  Bd6 {[%clk 0:02:44]} 12. c3 {[%clk 0:02:51]}  O-O {[%clk 0:02:43]} 13. Qb3 {[%clk 0:02:49]}  Rab8 {[%clk 0:02:40]} 14. Re1 {[%clk 0:02:44]}  h6 {[%clk 0:02:30]} 15. Be3 {[%clk 0:02:42]}  Rfc8 {[%clk 0:02:28]} 16. c4 {[%clk 0:02:29]}  Rc7 {[%clk 0:02:09]} 17. c5 {[%clk 0:02:28]}  Be7 {[%clk 0:01:52]} 18. Bf4 {[%clk 0:02:25]}  Rbc8 {[%clk 0:01:51]} 19. Bxc7 {[%clk 0:02:25]}  Rxc7 {[%clk 0:01:52]} 20. Rad1 {[%clk 0:02:26]}  Rd7 {[%clk 0:01:50]} 21. Be4 {[%clk 0:02:23]}  Bg4 {[%clk 0:01:48]} 22. f3 {[%clk 0:02:07]}  Bh5 {[%clk 0:01:47]} 23. Qc3 {[%clk 0:01:57]}  g5 {[%clk 0:01:43]} 24. b4 {[%clk 0:01:48]}  a6 {[%clk 0:01:37]} 25. Kg2 {[%clk 0:01:47]}  Qg7 {[%clk 0:01:34]} 26. a4 {[%clk 0:01:44]}  Bf6 {[%clk 0:01:18]} 27. b5 {[%clk 0:01:43]}  Bxd4 {[%clk 0:01:16]} 28. bxc6 {[%clk 0:01:37]}  bxc6 {[%clk 0:00:57]} 29. Qb3 {[%clk 0:01:37]}  Bg6 {[%clk 0:00:39]} 30. Bxc6 {[%clk 0:01:31]}  Re7 {[%clk 0:00:34]} 31. Be4 {[%clk 0:01:29]}  Bxc5 {[%clk 0:00:30]} 32. Bxg6 {[%clk 0:01:26]}  Qxg6 {[%clk 0:00:26]} 33. Qc4 {[%clk 0:01:25]}  Qf5 {[%clk 0:00:20]} 34. Qe4 {[%clk 0:01:21]}  Qxe4 {[%clk 0:00:19]} 35. Rxe4 {[%clk 0:01:20]}  a5 {[%clk 0:00:19]} 36. Rc4 {[%clk 0:01:14]}  Bb4 {[%clk 0:00:17]} 37. Rd8+ {[%clk 0:01:14]}  Kg7 {[%clk 0:00:17]} 38. Rdc8 {[%clk 0:01:13]}  Rd7 {[%clk 0:00:16]} 39. h4 {[%clk 0:01:09]}  Rd2+ {[%clk 0:00:13]} 40. Kh3 {[%clk 0:01:09]}  Ra2 {[%clk 0:00:14]} 41. R8c7 {[%clk 0:01:05]}  Rxa4 {[%clk 0:00:13]} 42. Ra7 {[%clk 0:01:05]}  Kg6 {[%clk 0:00:10]} 43. h5+ {[%clk 0:01:02]}  Kxh5 {[%clk 0:00:09]} 44. Rxf7 {[%clk 0:00:59]}  Ra3 {[%clk 0:00:09]} 45. Rc6 {[%clk 0:00:55]}  Rxf3 {[%clk 0:00:06]} 46. Rxf3 {[%clk 0:00:48]}  g4+ {[%clk 0:00:06]} 47. Kg2 {[%clk 0:00:48]}  gxf3+ {[%clk 0:00:07]} 48. Kxf3 {[%clk 0:00:49]}  e5 {[%clk 0:00:06]} 49. Ke4 {[%clk 0:00:41]}  a4 {[%clk 0:00:07]} 50. Kf5 {[%clk 0:00:22]}  a3 {[%clk 0:00:00]} 51. Rc2 {[%clk 0:00:20]} 1-0


[Site "https://www.chess.com"]

[Event "Titled Tuesday Blitz May 30 Late 2023"]
[White "Semenenko, Dmytry"]
[Black "Perez, Maximiliano"]
[WhiteFideId "14118645"]
[BlackFideId "117234"]
[WhiteElo "2113"]
[BlackElo "2344"]
[Result "0-1"]
[Round "01"]
[TimeControl "180+2"]
[Date "2023.05.31"]
[WhiteClock "0:00:10"]
[BlackClock "0:01:28"]

1. Nf3 {[%clk 0:03:00]}  Nf6 {[%clk 0:02:59]} 2. c4 {[%clk 0:03:00]}  e6 {[%clk 0:02:59]} 3. d4 {[%clk 0:02:59]}  d5 {[%clk 0:02:57]} 4. Nc3 {[%clk 0:03:00]}  dxc4 {[%clk 0:02:58]} 5. e4 {[%clk 0:02:58]}  b5 {[%clk 0:02:58]} 6. e5 {[%clk 0:02:55]}  Nd5 {[%clk 0:02:58]} 7. Nxb5 {[%clk 0:02:52]}  Nb6 {[%clk 0:02:59]} 8. Be3 {[%clk 0:02:47]}  Bb7 {[%clk 0:02:56]} 9. Rc1 {[%clk 0:02:42]}  Qd7 {[%clk 0:02:54]} 10. Nc3 {[%clk 0:02:38]}  Nc6 {[%clk 0:02:53]} 11. Qc2 {[%clk 0:02:25]}  O-O-O {[%clk 0:02:48]} 12. Rd1 {[%clk 0:02:25]}  Nb4 {[%clk 0:02:46]} 13. Qb1 {[%clk 0:02:24]}  f6 {[%clk 0:02:43]} 14. a3 {[%clk 0:02:20]}  N4d5 {[%clk 0:02:42]} 15. Ne4 {[%clk 0:02:13]}  Nxe3 {[%clk 0:02:40]} 16. fxe3 {[%clk 0:02:13]}  f5 {[%clk 0:02:37]} 17. Nc5 {[%clk 0:02:07]}  Bxc5 {[%clk 0:02:26]} 18. dxc5 {[%clk 0:02:07]}  Qxd1+ {[%clk 0:02:27]} 19. Qxd1 {[%clk 0:02:07]}  Rxd1+ {[%clk 0:02:28]} 20. Kxd1 {[%clk 0:02:07]}  Na4 {[%clk 0:02:28]} 21. Kc2 {[%clk 0:02:03]}  Be4+ {[%clk 0:02:27]} 22. Kc1 {[%clk 0:02:03]}  Bd5 {[%clk 0:02:26]} 23. Nd2 {[%clk 0:01:56]}  Nxc5 {[%clk 0:02:23]} 24. Bxc4 {[%clk 0:01:56]}  Bxc4 {[%clk 0:02:20]} 25. Nxc4 {[%clk 0:01:55]}  Rd8 {[%clk 0:02:21]} 26. Kc2 {[%clk 0:01:52]}  Ne4 {[%clk 0:02:17]} 27. Rf1 {[%clk 0:01:46]}  Kb7 {[%clk 0:02:14]} 28. g4 {[%clk 0:01:44]}  g6 {[%clk 0:02:13]} 29. gxf5 {[%clk 0:01:44]}  exf5 {[%clk 0:02:14]} 30. h4 {[%clk 0:01:33]}  Kc6 {[%clk 0:02:12]} 31. b4 {[%clk 0:01:25]}  Kb5 {[%clk 0:02:11]} 32. Nb2 {[%clk 0:01:12]}  Rd2+ {[%clk 0:02:11]} 33. Kb3 {[%clk 0:01:12]}  Rd5 {[%clk 0:02:02]} 34. a4+ {[%clk 0:01:11]}  Kc6 {[%clk 0:02:02]} 35. Rc1+ {[%clk 0:01:10]}  Kb7 {[%clk 0:02:01]} 36. Nc4 {[%clk 0:01:06]}  h6 {[%clk 0:01:57]} 37. Na5+ {[%clk 0:01:04]}  Kc8 {[%clk 0:01:56]} 38. e6 {[%clk 0:00:59]}  Re5 {[%clk 0:01:54]} 39. Rc6 {[%clk 0:00:51]}  Nd6 {[%clk 0:01:53]} 40. Ra6 {[%clk 0:00:40]}  Rxe3+ {[%clk 0:01:52]} 41. Kc2 {[%clk 0:00:39]}  Rxe6 {[%clk 0:01:52]} 42. Rxa7 {[%clk 0:00:39]}  g5 {[%clk 0:01:52]} 43. hxg5 {[%clk 0:00:39]}  hxg5 {[%clk 0:01:53]} 44. Nc6 {[%clk 0:00:37]}  Kd7 {[%clk 0:01:53]} 45. b5 {[%clk 0:00:35]}  g4 {[%clk 0:01:50]} 46. Ra8 {[%clk 0:00:34]}  Re8 {[%clk 0:01:49]} 47. Ra7 {[%clk 0:00:31]}  g3 {[%clk 0:01:49]} 48. Nd4 {[%clk 0:00:27]}  g2 {[%clk 0:01:45]} 49. Nf3 {[%clk 0:00:26]}  Re3 {[%clk 0:01:44]} 50. Ng1 {[%clk 0:00:26]}  Re1 {[%clk 0:01:43]} 51. Nf3 {[%clk 0:00:25]}  Nc8 {[%clk 0:01:34]} 52. Rb7 {[%clk 0:00:21]}  Rf1 {[%clk 0:01:31]} 53. b6 {[%clk 0:00:18]}  Nxb6 {[%clk 0:01:30]} 54. a5 {[%clk 0:00:15]}  Rxf3 {[%clk 0:01:28]} 55. axb6 {[%clk 0:00:10]}  g1=Q {[%clk 0:01:28]} 0-1


[Site "https://www.chess.com"]

[Event "Titled Tuesday Blitz May 30 Late 2023"]
[White "Aldokhin, Ivan"]
[Black "Sarkar, Justin"]
[WhiteFideId "24115720"]
[BlackFideId "2010011"]
[WhiteElo "2322"]
[BlackElo "2168"]
[Result "1-0"]
[Round "01"]
[TimeControl "180+2"]
[Date "2023.05.31"]
[WhiteClock "0:00:42"]
[BlackClock "0:00:00"]

1. e4 {[%clk 0:02:58]}  e5 {[%clk 0:02:41]} 2. Nf3 {[%clk 0:02:50]}  Nc6 {[%clk 0:02:38]} 3. Bb5 {[%clk 0:02:50]}  a6 {[%clk 0:02:36]} 4. Ba4 {[%clk 0:02:51]}  Nf6 {[%clk 0:02:35]} 5. O-O {[%clk 0:02:51]}  Nxe4 {[%clk 0:02:34]} 6. Re1 {[%clk 0:02:51]}  Nc5 {[%clk 0:02:30]} 7. Bxc6 {[%clk 0:02:52]}  dxc6 {[%clk 0:02:28]} 8. Nxe5 {[%clk 0:02:53]}  Ne6 {[%clk 0:02:24]} 9. b3 {[%clk 0:02:52]}  Be7 {[%clk 0:02:22]} 10. Bb2 {[%clk 0:02:53]}  O-O {[%clk 0:02:21]} 11. Nc3 {[%clk 0:02:54]}  Nd4 {[%clk 0:02:12]} 12. Ne4 {[%clk 0:02:53]}  Bf5 {[%clk 0:02:08]} 13. c3 {[%clk 0:02:43]}  Ne6 {[%clk 0:01:57]} 14. d4 {[%clk 0:02:43]}  c5 {[%clk 0:01:50]} 15. d5 {[%clk 0:02:19]}  Ng5 {[%clk 0:01:44]} 16. Ng3 {[%clk 0:02:12]}  Bc8 {[%clk 0:01:14]} 17. f4 {[%clk 0:02:09]}  f6 {[%clk 0:01:12]} 18. fxg5 {[%clk 0:01:48]}  fxe5 {[%clk 0:01:11]} 19. c4 {[%clk 0:01:34]}  Bxg5 {[%clk 0:01:07]} 20. Bxe5 {[%clk 0:01:30]}  Bf6 {[%clk 0:00:42]} 21. Qe2 {[%clk 0:01:16]}  Bd7 {[%clk 0:00:37]} 22. Nh5 {[%clk 0:01:13]}  Bxe5 {[%clk 0:00:22]} 23. Qxe5 {[%clk 0:01:12]}  Rf7 {[%clk 0:00:22]} 24. Rf1 {[%clk 0:01:12]}  Qe8 {[%clk 0:00:07]} 25. Qxc7 {[%clk 0:01:12]}  Qe3+ {[%clk 0:00:04]} 26. Kh1 {[%clk 0:01:11]}  Raf8 {[%clk 0:00:03]} 27. Rxf7 {[%clk 0:01:07]}  Rxf7 {[%clk 0:00:03]} 28. Qd8+ {[%clk 0:00:50]}  Be8 {[%clk 0:00:02]} 29. Ng3 {[%clk 0:00:44]}  Qd4 {[%clk 0:00:01]} 30. Qxe8+ {[%clk 0:00:42]}  Rf8 {[%clk 0:00:00]} 31. Qe6+ {[%clk 0:00:42]} 1-0


[Site "https://www.chess.com"]

[Event "Titled Tuesday Blitz May 30 Late 2023"]
[White "Gubajdullin, Alexei"]
[Black "Dragomirescu, Calin"]
[WhiteFideId "4141202"]
[BlackFideId "1200895"]
[WhiteElo "2279"]
[BlackElo "2010"]
[Result "1-0"]
[Round "01"]
[TimeControl "180+2"]
[Date "2023.05.31"]
[WhiteClock "0:01:21"]
[BlackClock "0:00:57"]

1. d4 {[%clk 0:02:53]}  Nf6 {[%clk 0:02:59]} 2. Nf3 {[%clk 0:02:53]}  g6 {[%clk 0:02:59]} 3. Bf4 {[%clk 0:02:53]}  Bg7 {[%clk 0:03:00]} 4. e3 {[%clk 0:02:53]}  O-O {[%clk 0:03:00]} 5. Be2 {[%clk 0:02:53]}  d6 {[%clk 0:03:01]} 6. O-O {[%clk 0:02:53]}  c5 {[%clk 0:02:59]} 7. c3 {[%clk 0:02:51]}  Nh5 {[%clk 0:02:58]} 8. Bg5 {[%clk 0:02:50]}  h6 {[%clk 0:02:58]} 9. Bh4 {[%clk 0:02:50]}  g5 {[%clk 0:02:54]} 10. Bg3 {[%clk 0:02:50]}  Nxg3 {[%clk 0:02:54]} 11. hxg3 {[%clk 0:02:49]}  Nc6 {[%clk 0:02:53]} 12. d5 {[%clk 0:02:41]}  Ne5 {[%clk 0:02:52]} 13. Nxe5 {[%clk 0:02:41]}  Bxe5 {[%clk 0:02:52]} 14. Bg4 {[%clk 0:02:40]}  f5 {[%clk 0:02:51]} 15. Be2 {[%clk 0:02:32]}  f4 {[%clk 0:02:50]} 16. exf4 {[%clk 0:02:30]}  gxf4 {[%clk 0:02:50]} 17. gxf4 {[%clk 0:02:30]}  Bxf4 {[%clk 0:02:41]} 18. g3 {[%clk 0:02:30]}  Be5 {[%clk 0:02:37]} 19. Bd3 {[%clk 0:02:29]}  e6 {[%clk 0:02:35]} 20. Qh5 {[%clk 0:02:23]}  Qg5 {[%clk 0:02:33]} 21. Qxg5+ {[%clk 0:02:17]}  hxg5 {[%clk 0:02:33]} 22. Bc4 {[%clk 0:02:17]}  exd5 {[%clk 0:02:29]} 23. Bxd5+ {[%clk 0:02:17]}  Kg7 {[%clk 0:02:30]} 24. Nd2 {[%clk 0:02:15]}  Rb8 {[%clk 0:02:29]} 25. Nc4 {[%clk 0:02:15]}  b5 {[%clk 0:02:24]} 26. Nxe5 {[%clk 0:02:14]}  dxe5 {[%clk 0:02:25]} 27. Rfe1 {[%clk 0:02:14]}  Re8 {[%clk 0:02:18]} 28. a4 {[%clk 0:02:02]}  b4 {[%clk 0:02:12]} 29. Re3 {[%clk 0:02:02]}  Bb7 {[%clk 0:02:08]} 30. Bxb7 {[%clk 0:01:58]}  Rxb7 {[%clk 0:02:09]} 31. Rae1 {[%clk 0:01:59]}  bxc3 {[%clk 0:02:05]} 32. bxc3 {[%clk 0:01:58]}  Rbe7 {[%clk 0:02:00]} 33. Re4 {[%clk 0:01:56]}  Kf6 {[%clk 0:01:58]} 34. Rc4 {[%clk 0:01:55]}  Rc7 {[%clk 0:01:55]} 35. Rb1 {[%clk 0:01:55]}  Rd8 {[%clk 0:01:53]} 36. Rb5 {[%clk 0:01:54]}  Rd5 {[%clk 0:01:52]} 37. a5 {[%clk 0:01:53]}  Kf5 {[%clk 0:01:48]} 38. Kg2 {[%clk 0:01:52]}  e4 {[%clk 0:01:47]} 39. a6 {[%clk 0:01:49]}  g4 {[%clk 0:01:41]} 40. Rb7 {[%clk 0:01:48]}  Rdd7 {[%clk 0:01:39]} 41. Rxc5+ {[%clk 0:01:47]}  Rxc5 {[%clk 0:01:39]} 42. Rxd7 {[%clk 0:01:47]}  Rxc3 {[%clk 0:01:38]} 43. Rxa7 {[%clk 0:01:46]}  Ra3 {[%clk 0:01:38]} 44. Ra8 {[%clk 0:01:44]}  Kf6 {[%clk 0:01:37]} 45. a7 {[%clk 0:01:41]}  Kg7 {[%clk 0:01:37]} 46. Kf1 {[%clk 0:01:40]}  Ra2 {[%clk 0:01:32]} 47. Ke1 {[%clk 0:01:40]}  Kh7 {[%clk 0:01:29]} 48. Kd1 {[%clk 0:01:40]}  Kg7 {[%clk 0:01:29]} 49. Kc1 {[%clk 0:01:40]}  Kh7 {[%clk 0:01:17]} 50. Kb1 {[%clk 0:01:40]}  Ra4 {[%clk 0:01:18]} 51. Kb2 {[%clk 0:01:39]}  Kg7 {[%clk 0:01:18]} 52. Kb3 {[%clk 0:01:39]}  Ra1 {[%clk 0:01:18]} 53. Kc4 {[%clk 0:01:39]}  Ra4+ {[%clk 0:01:15]} 54. Kd5 {[%clk 0:01:38]}  Kh7 {[%clk 0:01:14]} 55. Ke5 {[%clk 0:01:38]}  Kg7 {[%clk 0:01:15]} 56. Kf5 {[%clk 0:01:38]}  Kh7 {[%clk 0:01:15]} 57. Kf4 {[%clk 0:01:38]}  e3+ {[%clk 0:01:14]} 58. Kxe3 {[%clk 0:01:37]}  Kg7 {[%clk 0:01:13]} 59. Kd3 {[%clk 0:01:37]}  Ra1 {[%clk 0:01:13]} 60. Ke4 {[%clk 0:01:36]}  Ra4+ {[%clk 0:01:13]} 61. Kf5 {[%clk 0:01:36]}  Kh7 {[%clk 0:01:12]} 62. Kf6 {[%clk 0:01:33]}  Ra6+ {[%clk 0:01:11]} 63. Kf7 {[%clk 0:01:32]}  Ra2 {[%clk 0:01:08]} 64. Ke6 {[%clk 0:01:31]}  Ra4 {[%clk 0:01:06]} 65. Rf8 {[%clk 0:01:23]}  Rxa7 {[%clk 0:01:03]} 66. Rf7+ {[%clk 0:01:22]}  Rxf7 {[%clk 0:01:01]} 67. Kxf7 {[%clk 0:01:21]}  Kh6 {[%clk 0:00:57]} 68. Kf6 {[%clk 0:01:21]} 1-0


[Site "https://www.chess.com"]

[Event "Titled Tuesday Blitz May 30 Late 2023"]
[White "Ardila, Oscar Humberto"]
[Black "Kavutskiy, Konstantin"]
[WhiteFideId "4404742"]
[BlackFideId "2026384"]
[WhiteElo "1918"]
[BlackElo "2323"]
[Result "0-1"]
[Round "01"]
[TimeControl "180+2"]
[Date "2023.05.31"]
[WhiteClock "0:00:50"]
[BlackClock "0:00:04"]

1. d4 {[%clk 0:02:55]}  Nf6 {[%clk 0:02:59]} 2. c4 {[%clk 0:02:55]}  g6 {[%clk 0:02:58]} 3. Nc3 {[%clk 0:02:54]}  Bg7 {[%clk 0:02:58]} 4. Nf3 {[%clk 0:02:53]}  d6 {[%clk 0:02:58]} 5. e4 {[%clk 0:02:53]}  O-O {[%clk 0:02:57]} 6. Be2 {[%clk 0:02:53]}  e5 {[%clk 0:02:50]} 7. d5 {[%clk 0:02:52]}  Nbd7 {[%clk 0:02:47]} 8. O-O {[%clk 0:02:51]}  Nc5 {[%clk 0:02:46]} 9. Qc2 {[%clk 0:02:51]}  a5 {[%clk 0:02:47]} 10. Bg5 {[%clk 0:02:48]}  h6 {[%clk 0:02:46]} 11. Bh4 {[%clk 0:02:47]}  g5 {[%clk 0:02:38]} 12. Bg3 {[%clk 0:02:47]}  Nh5 {[%clk 0:02:38]} 13. Nd2 {[%clk 0:02:45]}  Nf4 {[%clk 0:02:35]} 14. Rfe1 {[%clk 0:02:33]}  b6 {[%clk 0:02:11]} 15. b3 {[%clk 0:02:32]}  h5 {[%clk 0:01:58]} 16. Bxf4 {[%clk 0:02:32]}  exf4 {[%clk 0:01:58]} 17. Bxh5 {[%clk 0:02:30]}  g4 {[%clk 0:01:55]} 18. f3 {[%clk 0:02:26]}  Bd4+ {[%clk 0:01:18]} 19. Kh1 {[%clk 0:02:15]}  g3 {[%clk 0:01:05]} 20. h3 {[%clk 0:02:10]}  Qf6 {[%clk 0:00:48]} 21. Rac1 {[%clk 0:02:05]}  Nd7 {[%clk 0:00:34]} 22. Bg4 {[%clk 0:01:59]}  Ne5 {[%clk 0:00:28]} 23. Bxc8 {[%clk 0:01:59]}  Raxc8 {[%clk 0:00:29]} 24. Nb5 {[%clk 0:01:59]}  Bf2 {[%clk 0:00:27]} 25. Re2 {[%clk 0:01:58]}  Kg7 {[%clk 0:00:26]} 26. Rf1 {[%clk 0:01:42]}  Bc5 {[%clk 0:00:23]} 27. a3 {[%clk 0:01:19]}  Rh8 {[%clk 0:00:22]} 28. b4 {[%clk 0:01:20]}  axb4 {[%clk 0:00:21]} 29. axb4 {[%clk 0:01:20]}  Be3 {[%clk 0:00:19]} 30. Rxe3 {[%clk 0:01:12]}  fxe3 {[%clk 0:00:19]} 31. Nb3 {[%clk 0:01:09]}  Rh5 {[%clk 0:00:13]} 32. N3d4 {[%clk 0:01:07]}  Qf4 {[%clk 0:00:09]} 33. Nf5+ {[%clk 0:01:06]}  Kf6 {[%clk 0:00:09]} 34. Qe2 {[%clk 0:00:56]}  Rch8 {[%clk 0:00:09]} 35. Qxe3 {[%clk 0:00:56]}  Rxh3+ {[%clk 0:00:08]} 36. gxh3 {[%clk 0:00:57]}  Rxh3+ {[%clk 0:00:09]} 37. Kg1 {[%clk 0:00:57]}  Qxe3+ {[%clk 0:00:03]} 38. Nxe3 {[%clk 0:00:57]}  Nd3 {[%clk 0:00:04]} 39. Kg2 {[%clk 0:00:54]}  Nf4+ {[%clk 0:00:04]} 40. Kg1 {[%clk 0:00:52]}  Ne2+ {[%clk 0:00:04]} 41. Kg2 {[%clk 0:00:50]}  Rh2# {[%clk 0:00:04]} 0-1


[Site "https://www.chess.com"]